[Event "Titled Tuesday Blitz December 20 Early 2022"]
[White "Pietrek, Gerhard"]
[Black "Patricks, Anastasia"]
[WhiteFideId "24631698"]
[BlackFideId "7101929"]
[WhiteElo "1596"]
[BlackElo "1778"]
[Result "0-1"]
[Round "01"]
[TimeControl "180+2"]
[Date "2022.12.20"]
[WhiteClock "0:00:05"]
[BlackClock "0:00:30"]

1. Nf3 {[%clk 0:02:57]}  g6 {[%clk 0:02:57]} 2. g3 {[%clk 0:02:58]}  Bg7 {[%clk 0:02:57]} 3. Bg2 {[%clk 0:02:58]}  Nf6 {[%clk 0:02:55]} 4. O-O {[%clk 0:02:59]}  O-O {[%clk 0:02:55]} 5. c4 {[%clk 0:02:59]}  d6 {[%clk 0:02:56]} 6. d4 {[%clk 0:02:58]}  Nbd7 {[%clk 0:02:56]} 7. Nc3 {[%clk 0:02:57]}  c5 {[%clk 0:02:57]} 8. b3 {[%clk 0:02:53]}  a6 {[%clk 0:02:57]} 9. Bb2 {[%clk 0:02:52]}  Rb8 {[%clk 0:02:57]} 10. a4 {[%clk 0:02:45]}  b6 {[%clk 0:02:57]} 11. d5 {[%clk 0:02:37]}  Ne8 {[%clk 0:02:50]} 12. Qc2 {[%clk 0:02:35]}  Nc7 {[%clk 0:02:50]} 13. Nd2 {[%clk 0:02:29]}  b5 {[%clk 0:02:50]} 14. axb5 {[%clk 0:02:24]}  axb5 {[%clk 0:02:51]} 15. Ra7 {[%clk 0:02:10]}  bxc4 {[%clk 0:02:45]} 16. bxc4 {[%clk 0:02:05]}  Na6 {[%clk 0:02:25]} 17. Ra1 {[%clk 0:02:01]}  Nb4 {[%clk 0:02:19]} 18. Qc1 {[%clk 0:02:01]}  Ne5 {[%clk 0:02:15]} 19. Bf1 {[%clk 0:01:50]}  Bf5 {[%clk 0:02:04]} 20. Nb5 {[%clk 0:01:47]}  Bd7 {[%clk 0:01:55]} 21. f4 {[%clk 0:01:36]}  Bxb5 {[%clk 0:01:54]} 22. cxb5 {[%clk 0:01:33]}  Ng4 {[%clk 0:01:49]} 23. Bxg7 {[%clk 0:01:34]}  Kxg7 {[%clk 0:01:50]} 24. e4 {[%clk 0:01:28]}  Kg8 {[%clk 0:01:35]} 25. Qc3 {[%clk 0:01:26]}  Nf6 {[%clk 0:01:13]} 26. R1a5 {[%clk 0:01:24]}  Re8 {[%clk 0:01:09]} 27. h3 {[%clk 0:01:17]}  e6 {[%clk 0:01:06]} 28. dxe6 {[%clk 0:01:14]}  Rxe6 {[%clk 0:01:06]} 29. Bc4 {[%clk 0:01:12]}  d5 {[%clk 0:01:04]} 30. exd5 {[%clk 0:01:12]}  Nbxd5 {[%clk 0:01:01]} 31. Qa1 {[%clk 0:00:50]}  Qe8 {[%clk 0:01:00]} 32. Nf1 {[%clk 0:00:41]}  Re1 {[%clk 0:00:57]} 33. Qb2 {[%clk 0:00:19]}  Qe4 {[%clk 0:00:48]} 34. Bxd5 {[%clk 0:00:15]}  Nxd5 {[%clk 0:00:49]} 35. Qf2 {[%clk 0:00:14]}  Re2 {[%clk 0:00:39]} 36. Ra4 {[%clk 0:00:14]}  c4 {[%clk 0:00:36]} 37. Ra8 {[%clk 0:00:07]}  Rxf2 {[%clk 0:00:29]} 38. Rxb8+ {[%clk 0:00:04]}  Kg7 {[%clk 0:00:29]} 39. Kxf2 {[%clk 0:00:04]}  Qc2+ {[%clk 0:00:30]} 40. Kf3 {[%clk 0:00:04]}  Qxa4 {[%clk 0:00:30]} 41. b6 {[%clk 0:00:05]}  Qb3+ {[%clk 0:00:30]} 0-1


[Site "https://www.chess.com"]

[Event "Titled Tuesday Blitz December 20 Early 2022"]
[White "Pranav, V"]
[Black "ChessTankMan"]
[WhiteFideId "25060783"]
[WhiteElo "2597"]
[BlackElo "2514"]
[Result "1-0"]
[Round "01"]
[TimeControl "180+2"]
[Date "2022.12.20"]
[WhiteClock "0:00:07"]
[BlackClock "0:00:02"]

1. e4 {[%clk 0:02:59]}  c5 {[%clk 0:02:59]} 2. Nf3 {[%clk 0:02:58]}  e6 {[%clk 0:03:00]} 3. g3 {[%clk 0:02:55]}  d5 {[%clk 0:02:59]} 4. Nc3 {[%clk 0:02:54]}  Nc6 {[%clk 0:02:57]} 5. Bg2 {[%clk 0:02:53]}  Nf6 {[%clk 0:02:57]} 6. exd5 {[%clk 0:02:53]}  exd5 {[%clk 0:02:56]} 7. O-O {[%clk 0:02:54]}  Be7 {[%clk 0:02:57]} 8. d4 {[%clk 0:02:54]}  O-O {[%clk 0:02:55]} 9. dxc5 {[%clk 0:02:54]}  Bxc5 {[%clk 0:02:55]} 10. Bg5 {[%clk 0:02:54]}  Be6 {[%clk 0:02:55]} 11. Na4 {[%clk 0:02:41]}  Be7 {[%clk 0:02:49]} 12. Re1 {[%clk 0:02:39]}  h6 {[%clk 0:02:45]} 13. Be3 {[%clk 0:02:38]}  Qa5 {[%clk 0:02:32]} 14. Nc3 {[%clk 0:02:34]}  Bb4 {[%clk 0:02:28]} 15. Nd4 {[%clk 0:02:21]}  Rfe8 {[%clk 0:01:19]} 16. Nxc6 {[%clk 0:02:15]}  bxc6 {[%clk 0:01:18]} 17. Bd4 {[%clk 0:02:15]}  Nd7 {[%clk 0:01:13]} 18. a3 {[%clk 0:02:14]}  Bf8 {[%clk 0:01:05]} 19. b4 {[%clk 0:02:11]}  Qc7 {[%clk 0:01:04]} 20. Rb1 {[%clk 0:02:06]}  Rad8 {[%clk 0:01:03]} 21. Qd2 {[%clk 0:02:03]}  Nb6 {[%clk 0:00:59]} 22. Qd3 {[%clk 0:02:01]}  Nc4 {[%clk 0:00:57]} 23. Na4 {[%clk 0:02:00]}  Qc8 {[%clk 0:00:47]} 24. Nc5 {[%clk 0:01:54]}  Bf5 {[%clk 0:00:46]} 25. Qc3 {[%clk 0:01:53]}  f6 {[%clk 0:00:33]} 26. Bf1 {[%clk 0:01:52]}  Nd6 {[%clk 0:00:29]} 27. Ba6 {[%clk 0:01:47]}  Qc7 {[%clk 0:00:27]} 28. a4 {[%clk 0:01:44]}  Ne4 {[%clk 0:00:25]} 29. Nxe4 {[%clk 0:01:44]}  Bxe4 {[%clk 0:00:25]} 30. Bc5 {[%clk 0:01:38]}  Bxc5 {[%clk 0:00:22]} 31. bxc5 {[%clk 0:01:37]}  Qf7 {[%clk 0:00:20]} 32. Rb7 {[%clk 0:01:34]}  Qh5 {[%clk 0:00:18]} 33. Bf1 {[%clk 0:01:30]}  d4 {[%clk 0:00:15]} 34. Qa5 {[%clk 0:01:18]}  Qf3 {[%clk 0:00:13]} 35. Rxe4 {[%clk 0:01:18]}  Qxe4 {[%clk 0:00:12]} 36. Qc7 {[%clk 0:01:18]}  Qg6 {[%clk 0:00:10]} 37. Bd3 {[%clk 0:01:13]}  Qg5 {[%clk 0:00:08]} 38. Kg2 {[%clk 0:01:13]}  Rf8 {[%clk 0:00:06]} 39. h4 {[%clk 0:01:12]}  Qd5+ {[%clk 0:00:06]} 40. f3 {[%clk 0:00:27]}  Rf7 {[%clk 0:00:06]} 41. Be4 {[%clk 0:00:09]}  Qc4 {[%clk 0:00:04]} 42. Qxc6 {[%clk 0:00:08]}  Rxb7 {[%clk 0:00:03]} 43. Qxb7 {[%clk 0:00:09]}  Kh8 {[%clk 0:00:02]} 44. c6 {[%clk 0:00:07]} 1-0


[Site "https://www.chess.com"]

[Event "Titled Tuesday Blitz December 20 Early 2022"]
[White "ProfessorChess101"]
[Black "jaldjald"]
[WhiteElo "2662"]
[BlackElo "2386"]
[Result "1-0"]
[Round "01"]
[TimeControl "180+2"]
[Date "2022.12.20"]
[WhiteClock "0:00:09"]
[BlackClock "0:00:04"]

1. Nf3 {[%clk 0:02:59]}  d5 {[%clk 0:02:59]} 2. c4 {[%clk 0:02:59]}  e6 {[%clk 0:02:59]} 3. g3 {[%clk 0:02:58]}  c5 {[%clk 0:02:59]} 4. Bg2 {[%clk 0:02:58]}  Nc6 {[%clk 0:02:59]} 5. O-O {[%clk 0:02:58]}  Nf6 {[%clk 0:02:58]} 6. b3 {[%clk 0:02:53]}  Be7 {[%clk 0:02:56]} 7. cxd5 {[%clk 0:02:51]}  exd5 {[%clk 0:02:54]} 8. Bb2 {[%clk 0:02:52]}  O-O {[%clk 0:02:53]} 9. d4 {[%clk 0:02:51]}  Ne4 {[%clk 0:02:53]} 10. Nbd2 {[%clk 0:02:43]}  Bf6 {[%clk 0:02:44]} 11. e3 {[%clk 0:02:30]}  Bg4 {[%clk 0:02:32]} 12. h3 {[%clk 0:02:19]}  Nxd2 {[%clk 0:02:13]} 13. Qxd2 {[%clk 0:02:18]}  Bxf3 {[%clk 0:02:13]} 14. Bxf3 {[%clk 0:02:19]}  cxd4 {[%clk 0:02:12]} 15. exd4 {[%clk 0:02:18]}  Qd7 {[%clk 0:01:19]} 16. Kg2 {[%clk 0:02:10]}  Rad8 {[%clk 0:01:17]} 17. Rac1 {[%clk 0:02:03]}  Rfe8 {[%clk 0:01:13]} 18. Rfe1 {[%clk 0:01:58]}  Rxe1 {[%clk 0:01:12]} 19. Rxe1 {[%clk 0:01:58]}  Qc7 {[%clk 0:01:08]} 20. h4 {[%clk 0:01:43]}  h6 {[%clk 0:01:06]} 21. Qe3 {[%clk 0:01:34]}  Qb6 {[%clk 0:01:04]} 22. Rd1 {[%clk 0:01:20]}  a5 {[%clk 0:01:03]} 23. a3 {[%clk 0:01:06]}  Ne7 {[%clk 0:00:55]} 24. Rd3 {[%clk 0:00:57]}  Nc6 {[%clk 0:00:49]} 25. Qf4 {[%clk 0:00:54]}  Qb5 {[%clk 0:00:44]} 26. Re3 {[%clk 0:00:48]}  a4 {[%clk 0:00:37]} 27. b4 {[%clk 0:00:47]}  Qc4 {[%clk 0:00:35]} 28. Be2 {[%clk 0:00:39]}  Qc2 {[%clk 0:00:29]} 29. Bc3 {[%clk 0:00:38]}  Ne7 {[%clk 0:00:17]} 30. Bd3 {[%clk 0:00:31]}  Qb3 {[%clk 0:00:15]} 31. Bd2 {[%clk 0:00:27]}  Qd1 {[%clk 0:00:12]} 32. Re1 {[%clk 0:00:20]}  Qb3 {[%clk 0:00:11]} 33. Re3 {[%clk 0:00:18]}  Qb2 {[%clk 0:00:11]} 34. Rf3 {[%clk 0:00:10]}  Qxd4 {[%clk 0:00:07]} 35. Qc7 {[%clk 0:00:10]}  Nc6 {[%clk 0:00:04]} 36. b5 {[%clk 0:00:09]} 1-0


[Site "https://www.chess.com"]

[Event "Titled Tuesday Blitz December 20 Early 2022"]
[White "RamonManon0g"]
[Black "von Klitzing, Ole"]
[BlackFideId "34618821"]
[WhiteElo "2372"]
[BlackElo "1564"]
[Result "0-1"]
[Round "01"]
[TimeControl "180+2"]
[Date "2022.12.20"]
[WhiteClock "0:00:13"]
[BlackClock "0:00:12"]

1. e4 {[%clk 0:03:00]}  c5 {[%clk 0:02:55]} 2. Nf3 {[%clk 0:03:00]}  e6 {[%clk 0:02:55]} 3. g3 {[%clk 0:03:00]}  b6 {[%clk 0:02:54]} 4. d4 {[%clk 0:03:00]}  Bb7 {[%clk 0:02:55]} 5. d5 {[%clk 0:03:00]}  d6 {[%clk 0:02:55]} 6. dxe6 {[%clk 0:02:58]}  fxe6 {[%clk 0:02:55]} 7. Nc3 {[%clk 0:02:57]}  Nc6 {[%clk 0:02:44]} 8. Bh3 {[%clk 0:02:54]}  Qe7 {[%clk 0:02:40]} 9. O-O {[%clk 0:02:51]}  h6 {[%clk 0:02:40]} 10. Bf4 {[%clk 0:02:46]}  g5 {[%clk 0:02:26]} 11. Be3 {[%clk 0:02:38]}  Nf6 {[%clk 0:02:25]} 12. Bg2 {[%clk 0:02:28]}  Bg7 {[%clk 0:02:25]} 13. Qd2 {[%clk 0:02:22]}  O-O {[%clk 0:02:21]} 14. Rad1 {[%clk 0:02:21]}  Rad8 {[%clk 0:02:20]} 15. h4 {[%clk 0:02:14]}  g4 {[%clk 0:02:16]} 16. Ne1 {[%clk 0:02:07]}  Kh7 {[%clk 0:02:14]} 17. Nd3 {[%clk 0:02:03]}  Nd4 {[%clk 0:02:00]} 18. Nf4 {[%clk 0:01:50]}  Nf3+ {[%clk 0:01:45]} 19. Bxf3 {[%clk 0:01:50]}  gxf3 {[%clk 0:01:46]} 20. Qd3 {[%clk 0:01:50]}  e5 {[%clk 0:01:46]} 21. Nfd5 {[%clk 0:01:46]}  Nxd5 {[%clk 0:01:43]} 22. exd5+ {[%clk 0:01:44]}  Kh8 {[%clk 0:01:40]} 23. Qg6 {[%clk 0:01:34]}  Rf6 {[%clk 0:01:32]} 24. Qh5 {[%clk 0:01:28]}  Qf7 {[%clk 0:01:27]} 25. Qxf7 {[%clk 0:01:02]}  Rxf7 {[%clk 0:01:28]} 26. Kh2 {[%clk 0:00:59]}  Bc8 {[%clk 0:01:27]} 27. Rh1 {[%clk 0:00:42]}  Bf5 {[%clk 0:01:25]} 28. Rd2 {[%clk 0:00:43]}  a6 {[%clk 0:01:21]} 29. Kg1 {[%clk 0:00:43]}  b5 {[%clk 0:01:21]} 30. a3 {[%clk 0:00:40]}  Kh7 {[%clk 0:01:19]} 31. Na2 {[%clk 0:00:36]}  e4 {[%clk 0:01:15]} 32. c3 {[%clk 0:00:32]}  Rg8 {[%clk 0:01:14]} 33. Nc1 {[%clk 0:00:31]}  Be5 {[%clk 0:01:14]} 34. Kf1 {[%clk 0:00:26]}  a5 {[%clk 0:01:11]} 35. Nb3 {[%clk 0:00:25]}  a4 {[%clk 0:01:07]} 36. Na5 {[%clk 0:00:25]}  Bd7 {[%clk 0:01:03]} 37. c4 {[%clk 0:00:20]}  bxc4 {[%clk 0:01:00]} 38. Nxc4 {[%clk 0:00:21]}  Bb5 {[%clk 0:01:00]} 39. Rc2 {[%clk 0:00:22]}  Rb8 {[%clk 0:00:55]} 40. Bc1 {[%clk 0:00:21]}  Bxc4+ {[%clk 0:00:54]} 41. Rxc4 {[%clk 0:00:22]}  Bxb2 {[%clk 0:00:55]} 42. Bf4 {[%clk 0:00:21]}  Be5 {[%clk 0:00:35]} 43. Bc1 {[%clk 0:00:21]}  Rb1 {[%clk 0:00:35]} 44. Ke1 {[%clk 0:00:20]}  e3 {[%clk 0:00:31]} 45. fxe3 {[%clk 0:00:20]}  Bxg3+ {[%clk 0:00:31]} 46. Kd2 {[%clk 0:00:20]}  f2 {[%clk 0:00:30]} 47. Rf1 {[%clk 0:00:20]}  Rb3 {[%clk 0:00:26]} 48. Rxa4 {[%clk 0:00:19]}  Be5 {[%clk 0:00:18]} 49. Kc2 {[%clk 0:00:19]}  Rc3+ {[%clk 0:00:18]} 50. Kd2 {[%clk 0:00:19]}  Rb3 {[%clk 0:00:17]} 51. Kc2 {[%clk 0:00:19]}  Rb8 {[%clk 0:00:16]} 52. Ra6 {[%clk 0:00:19]}  Rg8 {[%clk 0:00:16]} 53. Kd3 {[%clk 0:00:19]}  Rg1 {[%clk 0:00:14]} 54. Ke2 {[%clk 0:00:19]}  Rb7 {[%clk 0:00:13]} 55. Ra4 {[%clk 0:00:17]}  Rxf1 {[%clk 0:00:12]} 56. Kxf1 {[%clk 0:00:17]}  Rb1 {[%clk 0:00:13]} 57. Rc4 {[%clk 0:00:17]}  Bb2 {[%clk 0:00:13]} 58. Kxf2 {[%clk 0:00:17]}  Bxc1 {[%clk 0:00:14]} 59. Re4 {[%clk 0:00:15]}  Bxa3 {[%clk 0:00:13]} 60. Re6 {[%clk 0:00:14]}  c4 {[%clk 0:00:12]} 61. Re7+ {[%clk 0:00:14]}  Kg6 {[%clk 0:00:13]} 62. Rc7 {[%clk 0:00:15]}  Bc5 {[%clk 0:00:12]} 63. Kf3 {[%clk 0:00:15]}  c3 {[%clk 0:00:13]} 64. Re7 {[%clk 0:00:12]}  c2 {[%clk 0:00:13]} 65. Kg4 {[%clk 0:00:13]}  h5+ {[%clk 0:00:12]} 66. Kf4 {[%clk 0:00:13]}  c1=Q {[%clk 0:00:12]} 67. Re6+ {[%clk 0:00:13]}  Kf7 {[%clk 0:00:12]} 0-1


[Site "https://www.chess.com"]

[Event "Titled Tuesday Blitz December 20 Early 2022"]
[White "Rud_Makarian"]
[Black "TokChess"]
[WhiteElo "2889"]
[BlackElo "2504"]
[Result "1-0"]
[Round "01"]
[TimeControl "180+2"]
[Date "2022.12.20"]
[WhiteClock "0:00:49"]
[BlackClock "0:00:10"]

1. d3 {[%clk 0:03:00]}  d5 {[%clk 0:02:59]} 2. f4 {[%clk 0:02:56]}  c5 {[%clk 0:02:58]} 3. Nf3 {[%clk 0:02:56]}  Nc6 {[%clk 0:02:58]} 4. g3 {[%clk 0:02:57]}  g6 {[%clk 0:02:58]} 5. Bg2 {[%clk 0:02:57]}  Bg7 {[%clk 0:02:59]} 6. O-O {[%clk 0:02:58]}  Nf6 {[%clk 0:02:59]} 7. Nc3 {[%clk 0:02:59]}  O-O {[%clk 0:02:59]} 8. e4 {[%clk 0:02:59]}  b6 {[%clk 0:02:48]} 9. Nxd5 {[%clk 0:02:45]}  Nxd5 {[%clk 0:02:46]} 10. exd5 {[%clk 0:02:46]}  Qxd5 {[%clk 0:02:40]} 11. Qe2 {[%clk 0:02:44]}  Bb7 {[%clk 0:02:23]} 12. c3 {[%clk 0:02:38]}  Qd6 {[%clk 0:02:14]} 13. Ne5 {[%clk 0:02:31]}  Rad8 {[%clk 0:02:04]} 14. Rd1 {[%clk 0:02:23]}  Qc7 {[%clk 0:01:55]} 15. Nxc6 {[%clk 0:02:18]}  Bxc6 {[%clk 0:01:56]} 16. Be3 {[%clk 0:02:19]}  Qb7 {[%clk 0:01:51]} 17. Bxc6 {[%clk 0:02:18]}  Qxc6 {[%clk 0:01:52]} 18. Qg2 {[%clk 0:02:19]}  Qb5 {[%clk 0:01:46]} 19. Qc2 {[%clk 0:02:17]}  Rd6 {[%clk 0:01:44]} 20. a4 {[%clk 0:02:09]}  Qd7 {[%clk 0:01:44]} 21. Rd2 {[%clk 0:02:07]}  Rd8 {[%clk 0:01:43]} 22. Rad1 {[%clk 0:02:08]}  h5 {[%clk 0:01:44]} 23. Qb3 {[%clk 0:01:59]}  h4 {[%clk 0:01:41]} 24. Qc4 {[%clk 0:01:59]}  Qg4 {[%clk 0:01:36]} 25. Kg2 {[%clk 0:01:57]}  h3+ {[%clk 0:01:35]} 26. Kf2 {[%clk 0:01:57]}  Qf5 {[%clk 0:01:19]} 27. Kf3 {[%clk 0:01:46]}  e5 {[%clk 0:01:00]} 28. Qe4 {[%clk 0:01:42]}  Qe6 {[%clk 0:00:55]} 29. fxe5 {[%clk 0:01:34]}  Bxe5 {[%clk 0:00:55]} 30. Bf4 {[%clk 0:01:33]}  Rd5 {[%clk 0:00:42]} 31. d4 {[%clk 0:00:56]}  cxd4 {[%clk 0:00:36]} 32. cxd4 {[%clk 0:00:56]}  Bxd4 {[%clk 0:00:18]} 33. Rxd4 {[%clk 0:00:49]}  Qxe4+ {[%clk 0:00:10]} 34. Kxe4 {[%clk 0:00:49]}  f5+ {[%clk 0:00:10]} 35. Ke3 {[%clk 0:00:49]}  Re8+ {[%clk 0:00:10]} 36. Kf3 {[%clk 0:00:49]} 1-0


[Site "https://www.chess.com"]

[Event "Titled Tuesday Blitz December 20 Early 2022"]
[White "SaiHanThiha"]
[Black "Castro Andrade, Seirbert Cristian"]
[BlackFideId "3863336"]
[WhiteElo "2429"]
[BlackElo "1364"]
[Result "0-1"]
[Round "01"]
[TimeControl "180+2"]
[Date "2022.12.20"]
[WhiteClock "0:00:04"]
[BlackClock "0:01:17"]

1. d4 {[%clk 0:03:00]}  Nf6 {[%clk 0:02:59]} 2. c4 {[%clk 0:03:01]}  g6 {[%clk 0:02:59]} 3. Nc3 {[%clk 0:03:01]}  d5 {[%clk 0:02:59]} 4. Nf3 {[%clk 0:03:01]}  Bg7 {[%clk 0:03:00]} 5. Qb3 {[%clk 0:03:01]}  c6 {[%clk 0:02:57]} 6. cxd5 {[%clk 0:03:01]}  Nxd5 {[%clk 0:02:57]} 7. e4 {[%clk 0:03:02]}  Nxc3 {[%clk 0:02:57]} 8. bxc3 {[%clk 0:03:02]}  O-O {[%clk 0:02:58]} 9. Be3 {[%clk 0:03:02]}  c5 {[%clk 0:02:52]} 10. d5 {[%clk 0:03:02]}  e6 {[%clk 0:02:50]} 11. Bxc5 {[%clk 0:02:49]}  exd5 {[%clk 0:02:49]} 12. Bxf8 {[%clk 0:02:42]}  Qxf8 {[%clk 0:02:49]} 13. e5 {[%clk 0:02:06]}  Nc6 {[%clk 0:02:46]} 14. Be2 {[%clk 0:02:04]}  Nxe5 {[%clk 0:02:45]} 15. Nxe5 {[%clk 0:02:02]}  Bxe5 {[%clk 0:02:43]} 16. O-O {[%clk 0:02:02]}  Qc5 {[%clk 0:02:43]} 17. Rac1 {[%clk 0:01:52]}  b6 {[%clk 0:02:41]} 18. Bf3 {[%clk 0:01:52]}  Be6 {[%clk 0:02:41]} 19. Rfd1 {[%clk 0:01:35]}  Rd8 {[%clk 0:02:40]} 20. Qb4 {[%clk 0:01:34]}  Qc7 {[%clk 0:02:35]} 21. g3 {[%clk 0:01:23]}  Kg7 {[%clk 0:02:33]} 22. Qb5 {[%clk 0:01:12]}  Qc5 {[%clk 0:02:10]} 23. Qxc5 {[%clk 0:00:59]}  bxc5 {[%clk 0:02:10]} 24. Rd3 {[%clk 0:00:53]}  Rd7 {[%clk 0:02:10]} 25. Kg2 {[%clk 0:00:40]}  h5 {[%clk 0:01:55]} 26. h4 {[%clk 0:00:39]}  d4 {[%clk 0:01:46]} 27. cxd4 {[%clk 0:00:35]}  Bxd4 {[%clk 0:01:46]} 28. Be2 {[%clk 0:00:26]}  Rd6 {[%clk 0:01:33]} 29. Ra3 {[%clk 0:00:23]}  Bb2 {[%clk 0:01:29]} 30. Rcc3 {[%clk 0:00:16]}  Bxa3 {[%clk 0:01:27]} 31. Rxa3 {[%clk 0:00:16]}  Rd2 {[%clk 0:01:27]} 32. Bd3 {[%clk 0:00:11]}  Bd5+ {[%clk 0:01:25]} 33. Kf1 {[%clk 0:00:09]}  Bf3 {[%clk 0:01:18]} 34. Bc2 {[%clk 0:00:03]}  Be2+ {[%clk 0:01:17]} 35. Ke1 {[%clk 0:00:04]}  Rxc2 {[%clk 0:01:17]} 0-1


[Site "https://www.chess.com"]

[Event "Titled Tuesday Blitz December 20 Early 2022"]
[White "Salomez, Maxime"]
[Black "Myall, Ivan J"]
[WhiteFideId "652079600"]
[BlackFideId "425168"]
[WhiteElo "1359"]
[BlackElo "1924"]
[Result "1-0"]
[Round "01"]
[TimeControl "180+2"]
[Date "2022.12.20"]
[WhiteClock "0:00:04"]
[BlackClock "0:00:11"]

1. e4 {[%clk 0:03:00]}  c6 {[%clk 0:02:57]} 2. d4 {[%clk 0:03:00]}  d5 {[%clk 0:02:57]} 3. exd5 {[%clk 0:03:01]}  cxd5 {[%clk 0:02:57]} 4. Bd3 {[%clk 0:03:02]}  Nf6 {[%clk 0:02:57]} 5. h3 {[%clk 0:02:58]}  Nc6 {[%clk 0:02:58]} 6. c3 {[%clk 0:02:58]}  e5 {[%clk 0:02:55]} 7. dxe5 {[%clk 0:02:59]}  Nxe5 {[%clk 0:02:55]} 8. Nf3 {[%clk 0:03:00]}  Nxd3+ {[%clk 0:02:50]} 9. Qxd3 {[%clk 0:03:01]}  Be7 {[%clk 0:02:49]} 10. O-O {[%clk 0:03:01]}  O-O {[%clk 0:02:49]} 11. Be3 {[%clk 0:03:00]}  h6 {[%clk 0:02:46]} 12. Nbd2 {[%clk 0:03:00]}  b6 {[%clk 0:02:39]} 13. Nb3 {[%clk 0:03:00]}  Bb7 {[%clk 0:02:40]} 14. Nbd4 {[%clk 0:02:59]}  Ne4 {[%clk 0:02:38]} 15. Rad1 {[%clk 0:02:41]}  Bf6 {[%clk 0:02:32]} 16. Rfe1 {[%clk 0:02:40]}  Re8 {[%clk 0:02:31]} 17. Nc2 {[%clk 0:02:19]}  Nc5 {[%clk 0:02:21]} 18. Qd2 {[%clk 0:02:02]}  a5 {[%clk 0:02:08]} 19. Bd4 {[%clk 0:02:00]}  Ne4 {[%clk 0:01:52]} 20. Qf4 {[%clk 0:01:52]}  Be7 {[%clk 0:01:50]} 21. Qg4 {[%clk 0:01:34]}  Bf8 {[%clk 0:01:46]} 22. Ne3 {[%clk 0:00:49]}  Bc8 {[%clk 0:01:40]} 23. Qf4 {[%clk 0:00:49]}  Bd6 {[%clk 0:01:39]} 24. Be5 {[%clk 0:00:48]}  g5 {[%clk 0:01:23]} 25. Qh2 {[%clk 0:00:41]}  Bxe5 {[%clk 0:00:50]} 26. Nxe5 {[%clk 0:00:41]}  Bb7 {[%clk 0:00:48]} 27. N3g4 {[%clk 0:00:39]}  h5 {[%clk 0:00:42]} 28. Nh6+ {[%clk 0:00:32]}  Kg7 {[%clk 0:00:40]} 29. Nf5+ {[%clk 0:00:20]}  Kf6 {[%clk 0:00:35]} 30. Rxe4 {[%clk 0:00:06]}  dxe4 {[%clk 0:00:29]} 31. Rxd8 {[%clk 0:00:05]}  Raxd8 {[%clk 0:00:30]} 32. Nd4 {[%clk 0:00:03]}  Rxe5 {[%clk 0:00:30]} 33. h4 {[%clk 0:00:03]}  Rde8 {[%clk 0:00:16]} 34. hxg5+ {[%clk 0:00:03]}  Rxg5 {[%clk 0:00:15]} 35. Qf4+ {[%clk 0:00:04]}  Kg6 {[%clk 0:00:16]} 36. Qd6+ {[%clk 0:00:04]}  Kg7 {[%clk 0:00:13]} 37. Qd7 {[%clk 0:00:03]}  e3 {[%clk 0:00:07]} 38. Qxe8 {[%clk 0:00:02]}  Rxg2+ {[%clk 0:00:06]} 39. Kf1 {[%clk 0:00:03]}  Rxf2+ {[%clk 0:00:06]} 40. Ke1 {[%clk 0:00:03]}  Rxb2 {[%clk 0:00:04]} 41. Qe5+ {[%clk 0:00:03]}  Kg6 {[%clk 0:00:03]} 42. Qf5+ {[%clk 0:00:02]}  Kg7 {[%clk 0:00:04]} 43. Qg5+ {[%clk 0:00:01]}  Kf8 {[%clk 0:00:04]} 44. Qd8+ {[%clk 0:00:01]}  Kg7 {[%clk 0:00:05]} 45. Qg5+ {[%clk 0:00:01]}  Kf8 {[%clk 0:00:05]} 46. Qxe3 {[%clk 0:00:02]}  h4 {[%clk 0:00:05]} 47. Qh6+ {[%clk 0:00:01]}  Ke8 {[%clk 0:00:06]} 48. Qxh4 {[%clk 0:00:01]}  Rxa2 {[%clk 0:00:06]} 49. Qh8+ {[%clk 0:00:02]}  Kd7 {[%clk 0:00:07]} 50. Qb8 {[%clk 0:00:02]}  Bd5 {[%clk 0:00:07]} 51. Qxb6 {[%clk 0:00:01]}  Ra1+ {[%clk 0:00:07]} 52. Kd2 {[%clk 0:00:01]}  Ra2+ {[%clk 0:00:08]} 53. Ke3 {[%clk 0:00:02]}  a4 {[%clk 0:00:06]} 54. Qa7+ {[%clk 0:00:02]}  Kd6 {[%clk 0:00:06]} 55. Qa6+ {[%clk 0:00:03]}  Kd7 {[%clk 0:00:06]} 56. Qa5 {[%clk 0:00:04]}  Be6 {[%clk 0:00:06]} 57. Nxe6 {[%clk 0:00:03]}  fxe6 {[%clk 0:00:06]} 58. Qb5+ {[%clk 0:00:04]}  Ke7 {[%clk 0:00:07]} 59. Qa5 {[%clk 0:00:04]}  a3 {[%clk 0:00:06]} 60. Kd4 {[%clk 0:00:04]}  Ra1 {[%clk 0:00:06]} 61. Kc4 {[%clk 0:00:04]}  Kf6 {[%clk 0:00:04]} 62. Kc5 {[%clk 0:00:04]}  e5 {[%clk 0:00:04]} 63. c4 {[%clk 0:00:04]}  Kf5 {[%clk 0:00:04]} 64. Kc6 {[%clk 0:00:03]}  Kf4 {[%clk 0:00:03]} 65. c5 {[%clk 0:00:03]}  e4 {[%clk 0:00:04]} 66. Kc7 {[%clk 0:00:03]}  e3 {[%clk 0:00:04]} 67. c6 {[%clk 0:00:03]}  e2 {[%clk 0:00:05]} 68. Qd2+ {[%clk 0:00:03]}  Kf3 {[%clk 0:00:05]} 69. Qd3+ {[%clk 0:00:03]}  Kf2 {[%clk 0:00:06]} 70. Qd4+ {[%clk 0:00:03]}  Kf1 {[%clk 0:00:06]} 71. Qf4+ {[%clk 0:00:03]}  Kg2 {[%clk 0:00:06]} 72. Qg4+ {[%clk 0:00:03]}  Kf2 {[%clk 0:00:07]} 73. Qf5+ {[%clk 0:00:03]}  Ke3 {[%clk 0:00:07]} 74. Qe5+ {[%clk 0:00:03]}  Kd2 {[%clk 0:00:07]} 75. Qd4+ {[%clk 0:00:02]}  Ke1 {[%clk 0:00:03]} 76. Qxa1+ {[%clk 0:00:03]}  Kf2 {[%clk 0:00:04]} 77. Qf6+ {[%clk 0:00:03]}  Kg2 {[%clk 0:00:05]} 78. Qg5+ {[%clk 0:00:03]}  Kf2 {[%clk 0:00:05]} 79. Qf4+ {[%clk 0:00:03]}  Ke1 {[%clk 0:00:05]} 80. Qg3+ {[%clk 0:00:03]}  Kd2 {[%clk 0:00:06]} 81. Qf4+ {[%clk 0:00:02]}  Kd3 {[%clk 0:00:06]} 82. Qf5+ {[%clk 0:00:02]}  Kd2 {[%clk 0:00:06]} 83. Qd5+ {[%clk 0:00:02]}  Kc2 {[%clk 0:00:06]} 84. Qc4+ {[%clk 0:00:02]}  Kd2 {[%clk 0:00:07]} 85. Qd4+ {[%clk 0:00:02]}  Ke1 {[%clk 0:00:07]} 86. Kc8 {[%clk 0:00:02]}  a2 {[%clk 0:00:07]} 87. Qa1+ {[%clk 0:00:02]}  Kf2 {[%clk 0:00:08]} 88. Qxa2 {[%clk 0:00:02]}  Kf1 {[%clk 0:00:08]} 89. Qxe2+ {[%clk 0:00:02]}  Kg1 {[%clk 0:00:09]} 90. c7 {[%clk 0:00:03]}  Kh1 {[%clk 0:00:09]} 91. Kb7 {[%clk 0:00:03]}  Kg1 {[%clk 0:00:10]} 92. c8=Q {[%clk 0:00:04]}  Kh1 {[%clk 0:00:11]} 93. Qh8+ {[%clk 0:00:04]}  Kg1 {[%clk 0:00:11]} 94. Qhh2# {[%clk 0:00:04]} 1-0


[Site "https://www.chess.com"]